bitfinex-derivatives/quotes_BTCF0:USTF0_20241122
["timestamp","ask_amount","ask_price","bid_price","bid_amount"]
[1732239114746,0.051827,98251.0,98250.0,0.69143829]
[1732239118739,0.051827,98251.0,98250.0,0.58143829]
[1732239119052,0.051827,98251.0,98250.0,0.22063829]
[1732239119855,0.411627,98251.0,98250.0,0.22063829]
[1732239120147,0.412627,98251.0,98250.0,0.22063829]
[1732239120351,0.412627,98251.0,98250.0,0.17]
[1732239120747,0.412627,98251.0,98250.0,0.22174615]
[1732239121149,0.051827,98251.0,98250.0,0.22174615]
[1732239121648,0.051827,98251.0,98250.0,0.17]
[1732239121958,0.357187,98251.0,98250.0,0.14]
[1732239122451,0.36936213,98251.0,98250.0,0.14]
[1732239122650,0.357187,98251.0,98250.0,0.14]
[1732239122859,0.36936178,98251.0,98250.0,0.14]
[1732239123151,0.06400178,98251.0,98250.0,0.14]
[1732239123356,0.36936178,98251.0,98250.0,0.14]
[1732239124254,0.06400178,98251.0,98250.0,0.14]
[1732239124458,0.17276178,98251.0,98250.0,0.14]
[1732239124856,0.17276178,98251.0,98250.0,0.14139813]
[1732239125154,0.17282433,98251.0,98250.0,0.14139813]
[1732239125760,0.160587,98251.0,98250.0,0.14139813]
[1732239127257,0.17283054,98251.0,98250.0,0.48222613]
[1732239127556,0.001,98251.0,98250.0,0.48222613]
[1732239128359,0.001,98251.0,98250.0,0.78758613]
[1732239128552,0.0072,98259.0,98258.0,0.050824]
[1732239128748,0.3936,98263.0,98262.0,0.050822]
[1732239128954,0.10876,98269.0,98264.0,0.050821]
[1732239129161,0.10876,98269.0,98264.0,0.520821]
[1732239129862,0.10876,98269.0,98266.0,0.00139813]
[1732239130063,0.050819,98268.0,98266.0,0.20139813]
[1732239130269,0.10876,98269.0,98266.0,0.20139813]
[1732239130270,0.411616,98274.0,98266.0,0.48139813]
[1732239130563,0.001,98269.0,98268.0,0.050818]
[1732239130762,0.01359948,98269.0,98268.0,0.42]
[1732239130959,0.01359948,98269.0,98268.0,0.42139813]
[1732239131556,0.001,98269.0,98268.0,0.42139813]
[1732239131859,0.001,98269.0,98268.0,0.50481713]
[1732239132560,0.10876,98277.0,98268.0,0.45399813]
[1732239132757,0.0125841,98276.0,98268.0,0.45399813]
[1732239132954,0.10876,98277.0,98272.0,0.00139813]
[1732239133264,0.10876,98277.0,98272.0,0.46139813]
[1732239133564,0.01258962,98276.0,98272.0,0.46139813]
[1732239133755,0.050814,98277.0,98272.0,0.46139813]
[1732239133955,0.050814,98277.0,98274.0,0.00139813]
[1732239134263,0.00068,98284.0,98274.0,0.40139813]
[1732239134463,0.00152692,98285.0,98283.0,0.050811]
[1732239134667,0.00152692,98285.0,98283.0,0.180811]
[1732239134860,0.00152692,98285.0,98283.0,0.190811]
[1732239135059,0.00152692,98285.0,98284.0,0.00139813]
[1732239135260,0.00152692,98285.0,98284.0,0.43139813]
[1732239135860,0.00152692,98285.0,98284.0,0.28139813]
[1732239135861,0.0142325,98285.0,98284.0,0.28139813]
[1732239136057,0.00152692,98285.0,98284.0,0.28139813]
[1732239136254,0.00252692,98285.0,98284.0,0.20139813]
[1732239136457,0.0152429,98285.0,98284.0,0.20139813]
[1732239137458,0.0152429,98285.0,98284.0,0.2527763]
[1732239138069,0.00252692,98285.0,98284.0,0.2527763]
[1732239138268,0.00152692,98285.0,98284.0,0.2527763]
[1732239138559,0.00252692,98285.0,98284.0,0.2527763]
[1732239139856,0.00252692,98285.0,98284.0,0.20139813]
[1732239140061,0.31958561,98285.0,98259.0,0.3608]
[1732239140268,0.12915231,98280.0,98269.0,0.050818]
[1732239140468,0.12117869,98279.0,98277.0,0.050814]
[1732239140659,0.00252692,98285.0,98284.0,0.05081]
[1732239140857,0.00252692,98285.0,98284.0,0.16]
[1732239141059,0.01537852,98285.0,98284.0,0.16]
[1732239141260,0.00252692,98285.0,98284.0,0.27]
[1732239141766,0.36332692,98285.0,98284.0,0.15]
[1732239142168,0.375138,98285.0,98284.0,0.15]
[1732239142368,0.36332692,98285.0,98284.0,0.15]
[1732239144462,0.11088692,98285.0,98284.0,0.22]
[1732239144663,0.11088692,98285.0,98284.0,0.43]
[1732239145070,0.11088692,98285.0,98284.0,0.35]
[1732239145867,0.00252692,98285.0,98284.0,0.35]
[1732239147269,0.00252692,98285.0,98284.0,0.43]
[1732239154477,0.00252692,98285.0,98284.0,0.27]
[1732239156185,0.00152692,98285.0,98284.0,0.27]
[1732239156387,0.00252692,98285.0,98284.0,0.27]
[1732239156570,0.01533291,98285.0,98284.0,0.15]
[1732239156775,0.01433291,98285.0,98284.0,0.15]
[1732239156976,0.01533291,98285.0,98284.0,0.15]
[1732239157176,0.01380599,98285.0,98284.0,0.17]
[1732239157882,0.01380599,98285.0,98284.0,0.15]
[1732239158183,0.01380599,98285.0,98284.0,0.37]
[1732239159187,0.050809,98288.0,98284.0,0.37]
[1732239159491,0.01300543,98287.0,98286.0,0.050809]
[1732239159789,0.01300543,98287.0,98286.0,0.240809]
[1732239159982,0.01300543,98287.0,98286.0,0.300809]
[1732239160280,0.3608,98291.0,98286.0,0.300809]
[1732239160494,0.001,98288.0,98286.0,0.300809]
[1732239160680,0.0126794,98287.0,98286.0,0.300809]
[1732239161989,0.0136794,98287.0,98286.0,0.300809]
[1732239162176,0.0136794,98287.0,98286.0,0.35283654]
[1732239164981,0.1219994,98287.0,98286.0,0.35283654]
[1732239165379,0.1209994,98287.0,98286.0,0.35283654]
[1732239165681,0.1219994,98287.0,98286.0,0.35283654]
[1732239167187,0.1219994,98287.0,98286.0,0.25]
[1732239167904,1.13614027,98287.0,98261.0,0.0102]
[1732239168192,0.050822,98262.0,98261.0,0.08]
[1732239168397,0.159142,98262.0,98261.0,0.08]
[1732239168790,0.17206536,98262.0,98261.0,0.08]
[1732239169390,0.17207074,98262.0,98261.0,0.08]
[1732239169694,0.17207074,98262.0,98261.0,0.17]
[1732239169695,0.17307074,98262.0,98261.0,0.17]
[1732239170288,0.160142,98262.0,98261.0,0.17]
[1732239170489,0.17278814,98262.0,98261.0,0.17]
[1732239171296,0.17278814,98262.0,98261.0,0.5308]
[1732239171297,0.10932,98262.0,98261.0,0.5308]
[1732239171996,0.12194439,98262.0,98261.0,0.5308]
[1732239172192,0.10932,98262.0,98261.0,0.6808]
[1732239172706,0.10932,98262.0,98261.0,0.5008]
[1732239173196,0.160142,98262.0,98261.0,0.5008]
[1732239173496,0.051822,98262.0,98261.0,0.5008]
[1732239174907,0.051822,98262.0,98261.0,0.07]
[1732239175093,0.051822,98262.0,98250.0,0.3608]
[1732239175094,0.050827,98251.0,98250.0,0.3608]
[1732239175288,0.050827,98251.0,98250.0,0.3708]
[1732239175289,0.158787,98251.0,98250.0,0.3708]
[1732239175493,0.158787,98251.0,98250.0,0.3808]
[1732239175998,0.158787,98251.0,98250.0,0.02]
[1732239176495,0.159787,98251.0,98250.0,0.02]
[1732239177491,0.159787,98251.0,98250.0,0.070828]
[1732239179394,0.001,98251.0,98250.0,0.210828]
[1732239179601,0.10896,98251.0,98250.0,0.060828]
[1732239179895,0.10896,98251.0,98250.0,0.250828]
[1732239181096,0.159787,98251.0,98250.0,0.2]
[1732239181304,0.159787,98251.0,98250.0,0.09]
[1732239181502,0.001,98251.0,98250.0,0.240828]
[1732239182498,0.051827,98251.0,98250.0,0.19]
[1732239184502,0.051827,98251.0,98250.0,0.01]
[1732239184804,0.051827,98251.0,98250.0,0.28]
[1732239185203,0.051827,98251.0,98250.0,0.14]
[1732239186602,0.051827,98251.0,98250.0,0.04]
[1732239187802,0.06444725,98251.0,98250.0,0.04]
[1732239188002,0.36980725,98251.0,98250.0,0.03]
[1732239189499,0.36880725,98251.0,98250.0,0.03]
[1732239189702,0.36980725,98251.0,98250.0,0.03]
[1732239190301,0.36980725,98251.0,98250.0,0.04]
[1732239191908,0.357187,98251.0,98250.0,0.04]
[1732239192111,0.0646182,98251.0,98250.0,0.04]
[1732239192308,0.3699782,98251.0,98250.0,0.04]
[1732239193203,0.050836,98234.0,98233.0,0.062]
[1732239193404,0.158836,98234.0,98233.0,0.09]
[1732239193703,0.17203772,98234.0,98233.0,0.09]
[1732239193906,0.17723496,98234.0,98233.0,0.07]
[1732239194107,0.050846,98215.0,98214.0,0.0328]
[1732239194304,0.050846,98215.0,98214.0,0.15273399]
[1732239194305,0.158846,98215.0,98214.0,0.15273399]
[1732239194504,0.158846,98215.0,98214.0,0.15278964]
[1732239195419,0.158846,98215.0,98214.0,0.25278964]
[1732239195913,0.159846,98215.0,98214.0,0.25278964]
[1732239196308,0.109,98215.0,98214.0,0.25278964]
[1732239196518,0.109,98215.0,98214.0,0.70358964]
[1732239196704,0.001,98215.0,98214.0,0.78358964]
[1732239196911,0.001,98215.0,98214.0,0.66358964]
[1732239198304,0.001,98215.0,98214.0,0.76358964]
[1732239200308,0.108,98222.0,98221.0,0.050843]
[1732239200512,0.108,98222.0,98221.0,0.420843]
[1732239201318,0.12123522,98222.0,98221.0,0.530843]
[1732239201620,0.12223522,98222.0,98221.0,0.530843]
[1732239201808,0.12223522,98222.0,98221.0,0.380843]
[1732239202209,0.12220372,98222.0,98221.0,0.380843]
[1732239202411,0.109,98222.0,98221.0,0.380843]
[1732239202714,0.12222961,98222.0,98221.0,0.380843]
[1732239203114,0.109,98222.0,98221.0,0.17]
[1732239203312,0.12223112,98222.0,98221.0,0.21]
[1732239204424,0.12223112,98222.0,98221.0,0.17]
[1732239204718,0.14364857,98222.0,98221.0,0.24]
[1732239206025,0.48228857,98222.0,98221.0,0.24]
[1732239206317,0.50028787,98222.0,98221.0,0.24]
[1732239207125,0.19484787,98222.0,98221.0,0.24]
[1732239208611,0.19489024,98222.0,98221.0,0.24]
[1732239208817,0.1776645,98222.0,98221.0,0.24]
[1732239209026,0.19570617,98222.0,98221.0,0.24]
[1732239209619,0.20206235,98222.0,98221.0,0.24]
[1732239210519,0.29339532,98222.0,98221.0,0.24]
[1732239210726,0.20206235,98222.0,98221.0,0.24]
[1732239211133,0.29339532,98222.0,98221.0,0.24]
[1732239211615,0.2997515,98222.0,98221.0,0.24]
[1732239212119,0.27535365,98222.0,98221.0,0.24]
[1732239212319,0.20256703,98222.0,98221.0,0.24]
[1732239212622,0.30006556,98222.0,98221.0,0.24]
[1732239212836,0.20892321,98222.0,98221.0,0.24]
[1732239213322,0.30006556,98222.0,98221.0,0.24]
[1732239213529,0.20892321,98222.0,98221.0,0.24]
[1732239216117,0.20256703,98222.0,98221.0,0.24]
[1732239216317,0.20892353,98222.0,98221.0,0.24]
[1732239218131,0.20892353,98222.0,98221.0,0.17]
[1732239218428,0.33070082,98222.0,98221.0,0.1471]
[1732239219022,0.33003218,98222.0,98221.0,0.1471]
[1732239219419,0.32996565,98222.0,98221.0,0.1471]
[1732239219636,0.32360912,98222.0,98221.0,0.2171]
[1732239220533,0.29040912,98222.0,98221.0,0.2171]
[1732239221138,0.16869836,98222.0,98221.0,0.2171]
[1732239222439,0.16832076,98222.0,98221.0,0.2171]
[1732239224341,0.29015181,98222.0,98221.0,0.2171]
[1732239224538,0.16832076,98222.0,98221.0,0.2171]
[1732239224739,0.29015183,98222.0,98221.0,0.2171]
[1732239224947,0.16832076,98222.0,98221.0,0.1471]
[1732239225537,0.2721631,98222.0,98221.0,0.1471]
[1732239225838,0.2308314,98222.0,98221.0,0.1471]
[1732239226043,0.2898426,98222.0,98221.0,0.1471]
[1732239226440,0.1680112,98222.0,98221.0,0.1471]
[1732239227246,0.16165463,98222.0,98221.0,0.1471]
[1732239228147,0.16165463,98222.0,98214.0,5.565e-05]
[1732239228342,0.411646,98215.0,98214.0,0.02005565]
[1732239228649,0.411646,98215.0,98214.0,5.565e-05]
[1732239228650,0.44668998,98215.0,98214.0,5.565e-05]
[1732239229342,0.43325351,98215.0,98214.0,5.565e-05]
[1732239229549,0.4467582,98215.0,98214.0,5.565e-05]
[1732239229758,0.42515805,98215.0,98214.0,5.565e-05]
[1732239230049,0.46448624,98215.0,98214.0,0.01005565]
[1732239231749,0.46428125,98215.0,98214.0,0.02005565]
[1732239232052,0.46428125,98215.0,98214.0,0.19005565]
[1732239232547,0.46428125,98215.0,98214.0,0.22005565]
[1732239233249,0.46428125,98215.0,98214.0,0.10005565]
[1732239233846,0.46428125,98215.0,98214.0,0.16005565]
[1732239234444,0.44677733,98215.0,98214.0,0.16005565]
[1732239236237,0.445959,98215.0,98214.0,0.28005565]
[1732239236443,0.445959,98215.0,98214.0,0.23005565]
[1732239236642,0.445959,98215.0,98214.0,0.30005565]
[1732239236842,0.085159,98215.0,98214.0,0.35090265]
[1732239237451,0.1765932,98215.0,98214.0,0.35090265]
[1732239237748,0.17659555,98215.0,98214.0,0.35090265]
[1732239238257,0.085159,98215.0,98214.0,0.35090265]
[1732239238650,0.17660201,98215.0,98214.0,0.30005565]
[1732239238848,0.17660201,98215.0,98214.0,0.14005565]
[1732239240349,0.085159,98215.0,98214.0,0.14005565]
[1732239240548,0.17660201,98215.0,98214.0,0.14005565]
[1732239241348,0.17661347,98215.0,98214.0,0.14005565]
[1732239242150,0.17629753,98215.0,98214.0,0.14005565]
[1732239243548,0.44564306,98215.0,98214.0,0.14005565]
[1732239245758,0.411646,98215.0,98214.0,0.14005565]
[1732239245955,0.44584768,98215.0,98214.0,0.14005565]
[1732239246856,0.46272225,98215.0,98214.0,0.14005565]
[1732239247063,0.46272225,98215.0,98214.0,0.1]
[1732239247358,0.46272225,98215.0,98201.0,0.0328]
[1732239247563,0.46272225,98215.0,98200.0,0.1]
[1732239247564,0.09148541,98206.0,98200.0,0.1]
[1732239247764,0.050865,98178.0,98177.0,0.3608]
[1732239248064,0.050867,98175.0,98174.0,0.0943]
[1732239248263,0.050867,98175.0,98174.0,0.1543]
[1732239248264,0.42501936,98175.0,98174.0,0.1543]
[1732239248655,0.42501936,98175.0,98174.0,0.0943]
[1732239250563,0.411667,98175.0,98174.0,0.0943]
[1732239250755,0.42470569,98175.0,98174.0,0.0943]
[1732239250956,0.42470569,98175.0,98174.0,0.064]
[1732239251366,0.411667,98175.0,98174.0,0.064]
[1732239251866,0.42484587,98175.0,98174.0,0.064]
[1732239252256,0.411667,98175.0,98174.0,0.064]
[1732239252462,0.42484531,98175.0,98174.0,0.064]
[1732239252867,0.411667,98175.0,98174.0,0.064]
[1732239253368,0.4248423,98175.0,98174.0,0.064]
[1732239253570,0.42484219,98175.0,98174.0,0.064]
[1732239255465,0.050873,98163.0,98162.0,0.0329]
[1732239255665,0.158113,98163.0,98162.0,0.0329]
[1732239256457,0.050883,98144.0,98141.0,0.050884]
[1732239256660,0.158124,98143.0,98141.0,0.045884]
[1732239256863,0.10724,98142.0,98141.0,0.055884]
[1732239257273,0.10724,98142.0,98141.0,0.325884]
[1732239259569,0.10724,98142.0,98141.0,0.330884]
[1732239260271,0.05088,98150.0,98148.0,0.050881]
[1732239260578,0.10684,98149.0,98148.0,0.490881]
[1732239260880,0.10684,98149.0,98148.0,0.370881]
[1732239261577,0.050879,98151.0,98148.0,0.370881]
[1732239261785,0.10684,98150.0,98149.0,0.05088]
[1732239261966,0.10684,98150.0,98149.0,0.35088]
[1732239262572,0.10684,98150.0,98149.0,0.20088]
[1732239262880,0.10684,98150.0,98149.0,0.2]
[1732239263182,0.10684,98150.0,98149.0,0.15]
[1732239267184,0.10684,98150.0,98149.0,0.16]
[1732239267484,0.10684,98150.0,98149.0,0.32]
[1732239267879,0.10684,98150.0,98149.0,0.21]
[1732239268283,0.15772,98150.0,98149.0,0.21]
[1732239268474,0.15772,98150.0,98149.0,0.15]
[1732239268679,0.15772,98150.0,98149.0,0.31]
[1732239269377,0.17036541,98150.0,98149.0,0.31]
[1732239269581,0.17036541,98150.0,98149.0,0.19]
[1732239270578,0.17036541,98150.0,98149.0,0.24]
[1732239271683,0.01264541,98150.0,98149.0,0.44]
[1732239271874,0.10684,98150.0,98149.0,0.44]
[1732239272573,0.3608,98154.0,98153.0,0.050878]
[1732239272776,0.3608,98154.0,98153.0,0.440878]
[1732239272777,0.47998588,98154.0,98153.0,0.440878]
[1732239272980,0.46764,98154.0,98153.0,0.440878]
[1732239273182,0.3608,98154.0,98153.0,0.440878]
[1732239273381,0.46764,98154.0,98153.0,0.440878]
[1732239274187,0.00152834,98164.0,98158.0,0.050875]
[1732239274478,0.00152834,98164.0,98159.0,0.0931]
[1732239274479,0.11880512,98163.0,98159.0,0.0931]
[1732239274685,0.01196512,98162.0,98159.0,0.493975]
[1732239274886,0.01196512,98161.0,98159.0,0.3331]
[1732239275072,0.01196512,98160.0,98159.0,0.3331]
[1732239275272,0.06283912,98160.0,98159.0,0.3331]
[1732239276082,0.00152834,98164.0,98159.0,0.5131]
[1732239276283,0.00152834,98164.0,98163.0,0.050873]
[1732239276483,0.00152834,98164.0,98163.0,0.510873]
[1732239276781,0.00152834,98164.0,98163.0,0.380873]
[1732239277378,0.00152834,98164.0,98163.0,0.490873]
[1732239279391,0.0001282,98168.0,98167.0,0.050871]
[1732239279581,0.0001282,98168.0,98167.0,0.510871]
[1732239279782,0.0001282,98168.0,98167.0,0.816471]
[1732239279989,0.0072,98178.0,98177.0,0.050866]
[1732239280286,0.10684,98185.0,98184.0,0.050862]
[1732239280591,0.10684,98185.0,98184.0,0.210862]
[1732239280984,0.10684,98185.0,98184.0,0.21095336]
[1732239282991,0.10684,98185.0,98184.0,0.33090491]
[1732239283589,0.10684,98185.0,98184.0,0.07009136]
[1732239283893,0.10684,98185.0,98184.0,9.136e-05]
[1732239284093,0.17024,98185.0,98184.0,9.136e-05]
[1732239284582,0.22078161,98185.0,98184.0,9.136e-05]
[1732239286187,0.22078161,98185.0,98184.0,0.01009136]
[1732239286587,0.11394161,98185.0,98184.0,0.01009136]
[1732239286790,0.22078161,98185.0,98184.0,0.01009136]
[1732239287693,0.22078161,98185.0,98162.0,0.3608]
[1732239287999,0.22078161,98185.0,98154.0,0.3608]
[1732239288000,0.050872,98165.0,98164.0,0.07]
[1732239288190,0.157712,98165.0,98164.0,0.07]
[1732239288698,0.157712,98165.0,98164.0,0.0700651]
[1732239290296,0.157712,98165.0,98164.0,0.0800651]
[1732239290694,0.157712,98165.0,98164.0,0.1900651]
[1732239291792,0.157712,98165.0,98164.0,0.0800651]
[1732239294596,0.08165588,98173.0,98164.0,0.0800651]
[1732239294597,0.050869,98171.0,98170.0,0.050868]
[1732239294803,0.050867,98175.0,98174.0,0.050867]
[1732239294995,0.157347,98175.0,98174.0,0.150867]
[1732239295599,0.157347,98175.0,98174.0,0.1]
[1732239296603,0.15682215,98175.0,98174.0,0.1]
[1732239298303,0.050872,98165.0,98164.0,6.51e-05]
[1732239298497,0.050872,98165.0,98164.0,0.0200651]
[1732239299009,0.146772,98165.0,98164.0,0.0200651]
[1732239299808,0.51958565,98165.0,98164.0,0.0200651]
[1732239301111,0.82518565,98165.0,98164.0,0.0200651]
[1732239302007,0.87607124,98165.0,98164.0,0.0200651]
[1732239302906,2.37607124,98165.0,98164.0,0.0200651]
[1732239305322,2.36390972,98165.0,98164.0,0.0200651]
[1732239305508,2.37633567,98165.0,98164.0,0.0200651]
[1732239306112,2.07073567,98165.0,98164.0,0.0200651]
[1732239308116,2.11100492,98165.0,98164.0,0.0200651]
[1732239308312,2.09108617,98165.0,98164.0,0.01861732]
[1732239308618,0.050884,98149.0,98145.0,0.050885]
[1732239308918,0.11256,98148.0,98145.0,0.420885]
[1732239309225,0.050885,98147.0,98145.0,0.420885]
[1732239310703,0.050885,98147.0,98145.0,0.37]
[1732239313311,0.37371586,98146.0,98145.0,0.37]
[1732239314116,0.37371586,98146.0,98145.0,0.08]
[1732239314824,0.39434753,98146.0,98145.0,0.08]
[1732239315015,0.05089,98137.0,98136.0,0.0305]
[1732239315216,0.42460586,98137.0,98136.0,0.0905]
[1732239315420,0.42469645,98137.0,98136.0,0.0905]
[1732239317218,0.06389645,98137.0,98136.0,0.14139]
[1732239317416,0.41169,98137.0,98136.0,0.0905]
[1732239317918,0.42442572,98137.0,98136.0,0.0905]
[1732239318114,0.06362572,98137.0,98136.0,0.1005]
[1732239318315,0.06362572,98137.0,98136.0,0.0905]
[1732239318516,0.05089,98137.0,98136.0,0.2405]
[1732239319224,0.42437333,98137.0,98136.0,0.07]
[1732239319524,0.42437333,98137.0,98136.0,0.06]
[1732239320520,0.78517333,98137.0,98136.0,0.06]
[1732239320721,0.050895,98127.0,98126.0,0.0314]
[1732239320915,0.163495,98127.0,98126.0,0.1014]
[1732239321116,0.524295,98127.0,98126.0,0.1014]
[1732239321815,0.163495,98127.0,98126.0,0.0914]
[1732239322016,0.163495,98127.0,98126.0,0.2614]
[1732239323820,0.163495,98127.0,98126.0,0.1414]
[1732239324020,0.163495,98127.0,98126.0,0.2514]
[1732239324217,0.163495,98127.0,98126.0,0.3414]
[1732239324821,0.163495,98127.0,98126.0,0.1914]
[1732239326432,0.17626334,98127.0,98126.0,0.1914]
[1732239327034,0.163495,98127.0,98126.0,0.1914]
[1732239327527,0.17628594,98127.0,98126.0,0.1914]
[1732239328433,0.17628594,98127.0,98126.0,0.16]
[1732239328434,0.22764435,98127.0,98126.0,0.16]
[1732239329119,0.21485341,98127.0,98126.0,0.16]
[1732239329323,0.22758435,98127.0,98122.0,0.0304]
[1732239329523,0.050897,98123.0,98122.0,0.02]
[1732239329731,0.06362794,98123.0,98122.0,0.02]
[1732239330029,0.050903,98112.0,98111.0,0.0504423]
[1732239330235,0.169383,98112.0,98111.0,0.09]
[1732239330627,0.18226686,98112.0,98111.0,0.09]
[1732239330824,0.18226692,98112.0,98111.0,0.09]
[1732239331532,0.18226692,98112.0,98111.0,0.23]
[1732239332836,0.18226692,98112.0,98111.0,0.1]
[1732239333539,0.18226692,98112.0,98111.0,0.28]
[1732239334130,0.18226692,98112.0,98111.0,0.04]
[1732239334532,0.20290003,98112.0,98111.0,0.04]
[1732239334827,0.56370003,98112.0,98111.0,0.04]
[1732239335424,0.050908,98102.0,98101.0,0.0316]
[1732239335733,0.444976,98102.0,98101.0,0.0416]
[1732239338138,0.563496,98102.0,98101.0,0.0416]
[1732239338332,0.512588,98102.0,98101.0,0.313508]
[1732239338539,0.49211538,98102.0,98101.0,0.313508]
[1732239338942,0.42450338,98102.0,98101.0,0.153508]
[1732239339136,0.54294194,98102.0,98101.0,0.153508]
[1732239339336,0.54294194,98102.0,98101.0,0.1026]
[1732239339535,0.54294194,98102.0,98101.0,0.0716]
[1732239341728,0.54294194,98102.0,98101.0,0.0416]
[1732239341929,0.54294194,98102.0,98101.0,0.01]
[1732239342437,0.56328123,98102.0,98101.0,0.01]
[1732239345338,0.050908,98101.0,98100.0,0.1]
[1732239345533,0.20561317,98101.0,98100.0,0.1]
[1732239346134,0.08396123,98101.0,98100.0,0.1]
[1732239346328,0.20561418,98101.0,98100.0,0.1]
[1732239346533,0.09032617,98101.0,98100.0,0.1]
[1732239346741,0.13997597,98101.0,98100.0,0.1]
[1732239346940,0.13361103,98101.0,98100.0,0.1]
[1732239347236,0.139976,98101.0,98100.0,0.1]
[1732239348546,0.139976,98101.0,98077.0,0.10069806]
[1732239348547,0.050921,98078.0,98077.0,0.10069806]
[1732239348845,0.42443494,98078.0,98077.0,0.12]
[1732239349141,0.42417174,98078.0,98077.0,0.12]
[1732239349347,0.42417174,98078.0,98077.0,0.08]
[1732239349542,0.44421728,98078.0,98077.0,0.08]
[1732239349840,0.80501728,98078.0,98077.0,0.08]
[1732239350248,0.80501728,98078.0,98059.0,0.083431]
[1732239350249,0.92665423,98078.0,98059.0,0.0325]
[1732239350449,0.050931,98060.0,98059.0,0.0625]
[1732239350649,0.17602957,98060.0,98059.0,0.06255245]
[1732239350946,0.17602957,98060.0,98059.0,0.02005245]
[1732239352549,0.17599895,98060.0,98059.0,0.02005245]
[1732239353542,0.12506795,98060.0,98059.0,0.02005245]
[1732239353746,0.12506795,98060.0,98059.0,0.21005245]
[1732239354443,0.12506795,98060.0,98059.0,0.07098345]
[1732239354651,0.12506795,98060.0,98059.0,0.37098345]
[1732239355036,0.12506795,98060.0,98059.0,0.73178345]
[1732239355645,0.12506795,98060.0,98059.0,0.64178345]
[1732239355844,0.1126,98060.0,98059.0,0.64178345]
[1732239356148,0.12940667,98070.0,98059.0,0.64178345]
[1732239356443,0.3608,98079.0,98059.0,0.64178345]
[1732239356444,0.12538447,98069.0,98068.0,0.050926]
[1732239356643,0.12538447,98069.0,98068.0,0.410926]
[1732239358052,0.12538447,98069.0,98068.0,0.240926]
[1732239358654,0.12538447,98069.0,98068.0,0.330926]
[1732239359550,0.050923,98075.0,98074.0,0.050923]
[1732239359749,0.19625879,98075.0,98074.0,0.120923]
[1732239359956,0.19625879,98075.0,98074.0,0.330923]
[1732239361749,0.19574263,98075.0,98074.0,0.120923]
[1732239362052,0.19574263,98075.0,98074.0,0.420923]
[1732239362452,0.19574263,98075.0,98074.0,0.37]
[1732239362645,0.19574263,98075.0,98074.0,0.1]
[1732239364347,0.19574263,98075.0,98074.0,0.31]
[1732239364952,0.19557389,98075.0,98074.0,0.31]
[1732239365860,0.03201089,98075.0,98074.0,0.31]
[1732239366156,0.12495188,98075.0,98074.0,0.31]
[1732239366356,0.12495188,98075.0,98074.0,0.3431]
[1732239366948,0.12495188,98075.0,98074.0,0.1031]
[1732239367149,0.12495188,98075.0,98074.0,0.1231]
[1732239367359,0.11264,98075.0,98074.0,0.2031]
[1732239367557,0.12465749,98075.0,98074.0,0.2031]
[1732239367953,0.11264,98075.0,98074.0,0.2031]
[1732239368253,0.12465769,98075.0,98074.0,0.2031]
[1732239368655,0.11264,98075.0,98074.0,0.2031]
[1732239368963,0.12469677,98075.0,98074.0,0.2031]
[1732239369147,0.12469677,98075.0,98074.0,0.17]
[1732239369353,0.12469677,98075.0,98074.0,0.07]
[1732239371253,0.1437829,98075.0,98074.0,0.07]
[1732239371858,0.14363021,98075.0,98074.0,0.07]
[1732239373761,0.14363021,98075.0,98074.0,0.38]
[1732239375058,0.14317775,98075.0,98074.0,0.38]
[1732239376068,0.14317775,98075.0,98074.0,0.09]
[1732239378570,0.14317775,98075.0,98074.0,0.07]
[1732239380365,0.14317775,98075.0,98059.0,5.245e-05]
[1732239380366,0.050931,98060.0,98059.0,5.245e-05]
[1732239380561,0.050931,98060.0,98059.0,0.04005245]
[1732239380562,0.53829031,98060.0,98059.0,0.04005245]
[1732239381671,0.55766392,98060.0,98059.0,0.04005245]
[1732239381978,0.55766392,98060.0,98059.0,0.15005245]
[1732239382468,0.53829031,98060.0,98059.0,0.15005245]
[1732239384467,0.53829031,98060.0,98059.0,0.01505245]
[1732239384770,0.9181927,98060.0,98059.0,0.01505245]
[1732239384967,0.90419478,98060.0,98059.0,0.01505245]
[1732239385363,0.89227547,98060.0,98059.0,0.01505245]
[1732239385559,0.92331516,98060.0,98059.0,0.01505245]
[1732239385775,0.90421381,98060.0,98059.0,0.01505245]
[1732239387677,0.050943,98037.0,98036.0,0.050943]
[1732239387969,0.050943,98037.0,98036.0,0.120943]
[1732239387970,0.159983,98037.0,98036.0,0.120943]
[1732239388372,0.159983,98037.0,98036.0,0.270943]
[1732239390562,0.10904,98037.0,98036.0,0.270943]
[1732239390767,0.10904,98037.0,98036.0,0.360943]
[1732239395775,0.3608,98047.0,98046.0,0.050938]
[1732239395979,0.02037467,98047.0,98046.0,0.510938]
[1732239396276,0.05904,98049.0,98048.0,0.050937]
[1732239396485,0.05904,98049.0,98048.0,0.510937]
[1732239396978,0.00153036,98057.0,98056.0,0.050933]
[1732239397275,0.11057036,98057.0,98056.0,0.490933]
[1732239397781,0.11057036,98057.0,98056.0,0.851733]
[1732239398374,0.11057036,98057.0,98056.0,0.90343886]
[1732239398574,0.10904,98057.0,98056.0,0.90343886]
[1732239399886,0.10904,98057.0,98056.0,0.38263886]
[1732239400379,0.10904,98057.0,98056.0,0.44633886]
[1732239402979,0.10904,98057.0,98056.0,0.54633886]
[1732239404296,0.00011409,98064.0,98063.0,0.050929]
[1732239404486,0.10915409,98064.0,98063.0,0.500929]
[1732239404985,0.00011409,98064.0,98063.0,0.861729]
[1732239405379,0.00011409,98064.0,98063.0,0.500929]
[1732239405684,0.00011409,98064.0,98063.0,0.861729]
[1732239405891,0.00011409,98064.0,98063.0,0.571729]
[1732239406186,0.36091409,98064.0,98063.0,0.2]
[1732239407080,0.39171409,98064.0,98063.0,0.2]
[1732239408382,0.40341194,98064.0,98063.0,0.2]